bitfinex/quotes_BTCUSD_20240823
["timestamp","ask_amount","ask_price","bid_price","bid_amount"]
[1724424256941,0.908365,61754.0,61753.0,0.001]
[1724424257096,0.908365,61754.0,61738.0,1.242]
[1724424257097,0.323872,61753.0,61738.0,1.403974]
[1724424257474,0.161946,61749.0,61747.0,0.002]
[1724424257676,0.39599494,61755.0,61747.0,0.002]
[1724424257677,1.075745,61748.0,61747.0,0.002]
[1724424257874,0.5899,61748.0,61747.0,0.002]
[1724424258095,0.5899,61748.0,61738.0,1.242]
[1724424258291,0.004,61753.0,61743.0,0.3946]
[1724424258495,0.004,61753.0,61752.0,0.161938]
[1724424258695,0.004,61753.0,61752.0,0.485814]
[1724424258932,0.004,61753.0,61752.0,0.161938]
[1724424259078,0.004,61753.0,61752.0,0.485814]
[1724424259277,0.004,61753.0,61752.0,0.161938]
[1724424259749,0.2008,61759.0,61753.0,0.161934]
[1724424259882,0.2008,61759.0,61753.0,0.165934]
[1724424260271,0.2008,61759.0,61754.0,0.161932]
[1724424260479,0.2008,61759.0,61753.0,0.004]
[1724424260480,0.1988,61759.0,61753.0,0.161935]
[1724424260884,0.1998,61759.0,61753.0,0.161935]
[1724424261536,0.2028,61759.0,61753.0,0.161935]
[1724424261780,0.20221533,61759.0,61753.0,0.161935]
[1724424261986,0.20221533,61759.0,61753.0,1.40600298]
[1724424262132,0.004,61759.0,61755.0,0.4065]
[1724424262332,0.004,61759.0,61758.0,0.488766]
[1724424262536,0.004,61759.0,61758.0,1.29745698]
[1724424262778,0.4038,61776.0,61766.0,0.3238]
[1724424263008,0.4038,61776.0,61767.0,0.00323753]
[1724424263230,0.4038,61776.0,61768.0,0.161895]
[1724424263455,0.4038,61776.0,61768.0,0.161894]
[1724424263792,0.4038,61776.0,61764.0,0.323811]
[1724424263999,0.161884,61773.0,61759.0,1.242]
[1724424264202,0.45488929,61776.0,61763.0,0.161908]
[1724424264395,0.04808929,61775.0,61762.0,0.161911]
[1724424264595,0.45188929,61776.0,61763.0,0.16400298]
[1724424264832,0.1872,61774.0,61773.0,0.161883]
[1724424265023,0.1872,61774.0,61768.0,0.162895]
[1724424265471,0.1872,61774.0,61768.0,0.001]
[1724424266051,0.1872,61774.0,61767.0,0.161898]
[1724424266252,0.1872,61774.0,61768.0,0.161895]
[1724424266455,0.1872,61774.0,61773.0,0.485649]
[1724424266687,0.1872,61774.0,61773.0,0.161883]
[1724424266918,0.1872,61774.0,61773.0,0.485649]
[1724424266919,0.001,61774.0,61773.0,0.485649]
[1724424267341,0.001,61774.0,61773.0,0.97341798]
[1724424267548,0.0002,61779.0,61778.0,0.485608]
[1724424267749,0.0002,61779.0,61778.0,0.97334998]
[1724424267953,0.0002,61779.0,61778.0,1.36074998]
[1724424268584,0.0002,61779.0,61778.0,1.81248898]
[1724424268795,0.0002,61779.0,61778.0,2.13792798]
[1724424268997,0.0002,61779.0,61778.0,3.38192798]
[1724424269646,0.0002,61779.0,61778.0,3.05918898]
[1724424270055,0.0002,61779.0,61778.0,3.05818898]
[1724424270182,0.0012,61779.0,61778.0,3.07388881]
[1724424270390,0.0002,61779.0,61778.0,3.08188881]
[1724424270593,0.0002,61779.0,61778.0,3.40562781]
[1724424270779,0.0012,61779.0,61778.0,3.39762781]
[1724424271566,0.0002,61799.0,61798.0,0.485452]
[1724424271847,0.0002,61799.0,61798.0,2.21388998]
[1724424272448,0.0002,61799.0,61798.0,1.89025498]
[1724424272688,0.0002,61799.0,61798.0,1.94174464]
[1724424273064,0.0002,61799.0,61798.0,2.26537964]
[1724424273289,0.0002,61799.0,61798.0,2.67597964]
[1724424273521,0.0002,61799.0,61798.0,2.35234464]
[1724424273723,0.0012,61799.0,61798.0,2.30785498]
[1724424273852,0.0012,61799.0,61798.0,1.409617]
[1724424274053,0.0002,61799.0,61798.0,1.402617]
[1724424274258,0.0002,61799.0,61798.0,1.415617]
[1724424274463,0.0012,61799.0,61798.0,1.91025498]
[1724424274670,0.0002,61799.0,61798.0,2.53852498]
[1724424274870,0.0002,61799.0,61798.0,3.37605998]
[1724424275237,0.0012,61799.0,61798.0,3.07042498]
[1724424275941,0.0012,61799.0,61798.0,3.08004819]
[1724424276114,0.0012,61799.0,61798.0,3.07904819]
[1724424276250,0.0002,61799.0,61798.0,3.05904819]
[1724424276450,0.0002,61799.0,61798.0,3.07304819]
[1724424276681,0.0012,61799.0,61798.0,3.08004819]
[1724424276932,0.0012,61799.0,61798.0,2.74941319]
[1724424277313,0.0012,61799.0,61798.0,2.75641319]
[1724424277314,0.0022,61799.0,61798.0,2.75641319]
[1724424277761,0.0022,61799.0,61798.0,2.36751319]
[1724424278125,0.0022,61799.0,61798.0,1.91125498]
[1724424278510,0.0022,61799.0,61798.0,2.23488998]
[1724424278693,0.0022,61799.0,61798.0,2.55852498]
[1724424279061,0.0022,61799.0,61798.0,1.91125498]
[1724424280050,0.0022,61799.0,61798.0,1.42580298]
[1724424280257,0.0022,61799.0,61798.0,0.021]
[1724424280258,0.5792,61799.0,61798.0,0.021]
[1724424281070,0.5792,61799.0,61798.0,0.007]
[1724424281682,0.5792,61799.0,61798.0,0.65645498]
[1724424281683,0.0022,61799.0,61798.0,0.65645498]
[1724424281893,0.0022,61799.0,61798.0,0.98008998]
[1724424282096,0.0022,61799.0,61798.0,1.30372498]
[1724424282285,0.0022,61799.0,61798.0,0.98008998]
[1724424282487,0.0012,61799.0,61798.0,0.33581998]
[1724424282683,0.0012,61799.0,61798.0,0.32881998]
[1724424282684,0.0002,61799.0,61798.0,0.32881998]
[1724424282860,0.0002,61799.0,61798.0,0.97808998]
[1724424283081,0.0002,61799.0,61798.0,0.97508998]
[1724424283282,0.0002,61799.0,61798.0,1.29672498]
[1724424283548,0.0002,61799.0,61798.0,1.31672498]
[1724424283549,0.0012,61799.0,61798.0,1.31672498]
[1724424283872,0.0012,61799.0,61798.0,0.97308998]
[1724424284126,0.0022,61799.0,61798.0,0.97808998]
[1724424284384,0.0022,61799.0,61798.0,0.98708998]
[1724424284576,0.0002,61799.0,61798.0,0.33481998]
[1724424284774,0.0002,61799.0,61798.0,0.98208998]
[1724424285098,0.0002,61799.0,61798.0,0.65845498]
[1724424285596,0.0002,61799.0,61798.0,0.97308998]
[1724424285791,0.0002,61799.0,61798.0,0.65545498]
[1724424285792,0.0012,61799.0,61798.0,0.65545498]
[1724424285999,0.0012,61799.0,61798.0,1.42480298]
[1724424286196,0.0002,61799.0,61798.0,1.41880298]
[1724424286500,0.0012,61799.0,61798.0,1.42480298]
[1724424286703,0.0012,61799.0,61798.0,1.58661998]
[1724424286870,0.0002,61799.0,61798.0,1.89025498]
[1724424287059,0.0002,61799.0,61798.0,2.21388998]
[1724424287238,0.0012,61799.0,61798.0,2.23388998]
[1724424287444,0.0002,61799.0,61798.0,2.22788998]
[1724424288748,0.0002,61799.0,61798.0,2.21388998]
[1724424288903,0.0012,61799.0,61798.0,2.21988998]
[1724424289108,0.5948,61799.0,61798.0,1.2548]
[1724424289307,0.736951,61785.0,61782.0,1.2408]
[1724424289513,0.161859,61782.0,61781.0,0.00974384]
[1724424289715,0.161859,61782.0,61771.0,1.2408]
[1724424289716,0.1961,61781.0,61771.0,1.2408]
[1724424289889,0.379,61780.0,61772.0,0.16724029]
[1724424290089,0.379,61780.0,61772.0,0.16400298]
[1724424291049,0.1961,61781.0,61775.0,0.323754]
[1724424291253,0.1961,61781.0,61779.0,0.161867]
[1724424291440,0.1961,61781.0,61777.0,0.161871]
[1724424291575,0.1961,61781.0,61777.0,0.32587398]
[1724424291777,0.1961,61781.0,61778.0,0.16400298]
[1724424292028,0.1961,61781.0,61773.0,0.161882]
[1724424292233,0.1961,61781.0,61764.0,0.703511]
[1724424292434,0.413,61777.0,61771.0,0.16400298]
[1724424292637,0.413,61777.0,61762.0,1.672418]
[1724424292841,0.1904,61776.0,61767.0,0.161897]
[1724424293058,0.1904,61776.0,61765.0,0.323805]
[1724424293059,0.1904,61776.0,61768.0,0.161894]
[1724424293260,0.1904,61776.0,61775.0,0.485632]
[1724424293463,0.1904,61776.0,61775.0,0.32587998]
[1724424293660,0.1904,61776.0,61775.0,0.16400298]
[1724424293835,0.1904,61776.0,61775.0,0.32587998]
[1724424294044,0.1904,61776.0,61770.0,1.2408]
[1724424294400,0.1904,61776.0,61775.0,0.001]
[1724424294635,0.1904,61776.0,61775.0,0.008]
[1724424294636,0.1914,61776.0,61775.0,0.008]
[1724424294841,0.1914,61776.0,61775.0,0.007]
[1724424295049,0.567,61776.0,61775.0,0.007]
[1724424295854,0.1904,61776.0,61775.0,0.16400298]
[1724424296013,0.1904,61776.0,61775.0,0.32587998]
[1724424296189,0.323678,61790.0,61777.0,0.161871]
[1724424296393,0.323678,61790.0,61777.0,0.16400298]
[1724424296394,0.5738,61786.0,61777.0,0.16400298]
[1724424296622,0.1902,61786.0,61775.0,0.005]
[1724424296824,0.161854,61784.0,61775.0,0.005]
[1724424297024,0.001,61776.0,61775.0,0.007]
[1724424297443,0.002,61776.0,61772.0,1.2408]
[1724424297647,0.199,61774.0,61772.0,1.2408]
[1724424298667,0.161883,61773.0,61772.0,1.2408]
[1724424298871,0.4097,61773.0,61757.0,1.2418]
[1724424299078,0.199,61774.0,61770.0,0.323777]
[1724424299233,0.199,61774.0,61773.0,0.485649]
[1724424299469,0.199,61774.0,61771.0,1.40480298]
[1724424299470,0.199,61774.0,61772.0,0.007]
[1724424299639,0.199,61774.0,61772.0,0.009]
[1724424299838,0.199,61774.0,61772.0,0.002]
[1724424300043,0.199,61774.0,61771.0,1.2408]
[1724424300366,0.201,61774.0,61771.0,1.2408]
[1724424300573,0.2,61774.0,61771.0,1.2408]
[1724424300795,0.199,61774.0,61771.0,1.40480298]
[1724424301000,0.2,61774.0,61772.0,0.002]
[1724424301198,0.871449,61773.0,61772.0,0.011]
[1724424301402,0.3858,61773.0,61772.0,0.009]
[1724424301904,0.3858,61773.0,61772.0,0.170885]
[1724424302108,0.201,61774.0,61772.0,0.009]
[1724424302236,0.2,61774.0,61771.0,1.2408]
[1724424302441,0.2,61774.0,61772.0,0.161885]
[1724424302663,0.2,61774.0,61771.0,1.2408]
[1724424302863,0.2,61774.0,61771.0,1.402687]
[1724424303270,0.2,61774.0,61771.0,1.56668998]
[1724424303738,0.199,61774.0,61771.0,1.2408]
[1724424303946,0.199,61774.0,61768.0,0.161894]
[1724424304092,0.199,61774.0,61772.0,0.001]
[1724424304293,0.199,61774.0,61768.0,0.16400298]
[1724424304555,0.199,61774.0,61769.0,0.32589498]
[1724424304723,0.161885,61772.0,61771.0,0.002]
[1724424304899,0.3991,61773.0,61771.0,0.002]
[1724424305381,0.161885,61772.0,61771.0,0.002]
[1724424305588,0.722867,61773.0,61765.0,1.2408]
[1724424305865,1.071803,61766.0,61765.0,1.2408]
[1724424306183,0.5861,61766.0,61765.0,1.2408]
[1724424306817,0.187,61766.0,61765.0,1.2408]
[1724424307516,0.188,61766.0,61765.0,1.411703]
[1724424307717,0.189,61766.0,61765.0,1.73751]
[1724424307871,0.758001,61766.0,61765.0,1.2408]
[1724424308201,0.5961,61766.0,61765.0,1.2428]
[1724424308429,0.5961,61766.0,61765.0,1.575607]
[1724424308430,0.5971,61766.0,61765.0,1.575607]
[1724424308670,0.001,61766.0,61765.0,1.89951298]
[1724424308871,0.002,61766.0,61765.0,2.54912698]
[1724424309078,0.002,61766.0,61765.0,2.22531998]
[1724424309655,0.001,61766.0,61765.0,2.21631998]
[1724424310016,0.002,61766.0,61765.0,2.54912698]
[1724424310271,0.001,61766.0,61765.0,2.54712698]
[1724424310463,0.002,61766.0,61765.0,1.73751]
[1724424310702,0.001,61766.0,61765.0,1.2428]
[1724424310910,0.1965,61766.0,61765.0,1.2538]
[1724424311052,1.090303,61766.0,61765.0,1.2538]
[1724424311255,0.6046,61766.0,61765.0,1.2538]
[1724424311603,0.6036,61766.0,61765.0,1.2428]
[1724424311831,0.6026,61766.0,61765.0,1.2408]
[1724424312272,0.6036,61766.0,61765.0,1.2428]
[1724424313575,0.6036,61766.0,61765.0,0.011]
[1724424313576,1.87597583,61766.0,61765.0,0.011]
[1724424313773,0.6046,61766.0,61765.0,0.011]
[1724424314858,0.766501,61766.0,61765.0,0.011]
[1724424315271,1.090303,61766.0,61765.0,0.011]
[1724424315683,1.414105,61766.0,61765.0,0.011]
[1724424315885,1.8469373,61766.0,61765.0,0.011]
[1724424316109,2.19988033,61766.0,61765.0,0.011]
[1724424316309,2.19988033,61766.0,61746.0,1.2408]
[1724424316310,0.5804,61758.0,61748.0,0.161947]
[1724424316484,0.5804,61758.0,61745.0,1.564709]
[1724424316683,0.5804,61758.0,61749.0,0.161945]
[1724424316906,0.61886398,61757.0,61733.0,1.2408]
[1724424317062,0.61886398,61757.0,61731.0,1.2408]
[1724424317063,0.323932,61742.0,61731.0,1.2408]
[1724424317274,0.574,61743.0,61725.0,1.2408]
[1724424317505,0.574,61743.0,61726.0,0.16400298]
[1724424317506,0.32393,61742.0,61726.0,0.16400298]
[1724424317826,0.32393,61742.0,61725.0,1.2408]
[1724424317827,0.599,61734.0,61725.0,1.2408]
[1724424318024,0.0599,61733.0,61725.0,1.2408]
[1724424318225,0.161993,61731.0,61725.0,1.2408]
[1724424318453,0.5748,61730.0,61725.0,1.2408]
[1724424319135,0.736798,61730.0,61725.0,1.2408]
[1724424319332,0.161999,61729.0,61725.0,1.2408]
[1724424319542,0.161999,61729.0,61715.0,0.324067]
[1724424319543,0.324001,61729.0,61713.0,1.402838]
[1724424319739,0.5622,61725.0,61713.0,1.2408]
[1724424319982,0.0898801,61728.0,61713.0,1.2408]
[1724424319983,0.3807,61716.0,61713.0,1.2408]
[1724424320186,0.3807,61716.0,61704.0,1.2408]
[1724424320458,0.3957681,61716.0,61698.0,1.71855654]
[1724424320657,0.3957681,61716.0,61699.0,1.40480298]
[1724424320886,0.64793341,61716.0,61704.0,0.162063]
[1724424321000,0.48590041,61716.0,61699.0,1.40480298]
[1724424321209,0.48590041,61716.0,61705.0,0.162059]
[1724424321403,0.48642556,61716.0,61699.0,1.40480298]
[1724424321603,0.3807,61716.0,61699.0,1.40480298]
[1724424321965,0.3807,61716.0,61706.0,0.324112]
[1724424322211,0.3807,61716.0,61705.0,0.324117]
[1724424322414,0.3807,61716.0,61699.0,1.40480298]
[1724424322623,0.324071,61715.0,61699.0,1.40480298]
[1724424322768,0.3817,61716.0,61700.0,0.324148]
[1724424322968,0.3817,61716.0,61701.0,0.16724397]
[1724424323176,0.3817,61716.0,61702.0,0.324137]
[1724424323527,0.3817,61716.0,61699.0,1.2438]
[1724424323528,0.1815,61717.0,61716.0,0.162032]
[1724424323882,0.4126,61722.0,61711.0,0.00324048]
[1724424323883,0.6025,61722.0,61711.0,0.00324048]
[1724424324069,0.1899,61727.0,61713.0,0.4096]
[1724424324263,0.1899,61727.0,61719.0,0.324048]
[1724424324469,0.1899,61727.0,61707.0,0.4096]
[1724424324470,0.001,61716.0,61707.0,0.4096]
[1724424324666,0.1899,61715.0,61706.0,0.162057]
[1724424324951,0.1899,61715.0,61705.0,1.2408]
[1724424325427,0.1899,61715.0,61706.0,0.324115]
[1724424325582,0.1899,61715.0,61705.0,1.2408]
[1724424325964,0.24668,61715.0,61702.0,0.004]
[1724424326193,0.162037,61714.0,61703.0,0.162065]
[1724424326400,0.162037,61714.0,61705.0,0.004]
[1724424326401,0.70159446,61714.0,61705.0,0.004]
[1724424326669,0.5735,61710.0,61705.0,0.004]
[1724424326872,0.35294303,61711.0,61692.0,0.324186]
[1724424326873,0.5735,61706.0,61692.0,0.324186]
[1724424327080,0.5735,61706.0,61693.0,0.16724435]
[1724424327302,0.1954,61706.0,61702.0,0.004]
[1724424327718,0.1847,61714.0,61703.0,1.40480298]
[1724424327922,0.1847,61714.0,61709.0,0.16205]
[1724424328131,0.1847,61714.0,61710.0,0.16400298]
[1724424328299,0.001,61715.0,61714.0,0.162037]
[1724424328532,0.001,61715.0,61710.0,0.16400298]
[1724424328731,0.001,61715.0,61714.0,0.162037]
[1724424328925,0.001,61715.0,61714.0,0.486112]
[1724424329085,0.4142,61718.0,61710.0,0.16400298]
[1724424329262,0.4142,61718.0,61713.0,0.32408]
[1724424329462,0.47409,61718.0,61701.0,0.39095865]
[1724424329743,0.47409,61718.0,61704.0,0.162062]
[1724424329904,0.1847,61719.0,61704.0,0.16724375]
[1724424330309,0.001,61718.0,61717.0,0.162029]
[1724424330712,0.1847,61719.0,61715.0,0.162033]
[1724424330914,0.1847,61719.0,61716.0,0.162032]
[1724424331119,0.1867,61719.0,61715.0,0.162033]
[1724424331319,0.1857,61719.0,61715.0,0.324069]
[1724424331518,0.1857,61719.0,61705.0,1.2408]
[1724424331721,0.001,61718.0,61715.0,0.162034]
[1724424332044,0.1857,61719.0,61712.0,0.324082]
[1724424332249,0.1857,61719.0,61716.0,0.162031]
[1724424332448,0.1857,61719.0,61714.0,0.324075]
[1724424332674,0.1857,61719.0,61712.0,0.162042]
[1724424332808,0.1867,61719.0,61715.0,0.004]
[1724424333523,0.1857,61719.0,61714.0,0.162036]
[1724424333714,0.1857,61719.0,61704.0,0.4683]
[1724424333715,0.396,61718.0,61706.0,1.2408]
[1724424333923,0.1847,61719.0,61717.0,0.162029]
[1724424333924,0.1857,61719.0,61717.0,0.162029]
[1724424334068,0.1857,61719.0,61718.0,0.486081]
[1724424334277,0.1857,61719.0,61718.0,0.162027]
[1724424334679,0.001,61719.0,61718.0,2.53899198]
[1724424334909,0.001,61719.0,61718.0,3.30434598]
[1724424335108,0.001,61719.0,61718.0,3.40434598]
[1724424335628,0.49229154,61741.0,61737.0,0.323953]
[1724424335833,0.49229154,61741.0,61740.0,0.161969]
[1724424336006,0.1936,61742.0,61733.0,0.647944]
[1724424336219,0.1936,61742.0,61741.0,0.161966]
[1724424336619,0.1936,61742.0,61741.0,0.485899]
[1724424336971,0.1936,61742.0,61737.0,0.004]
[1724424337239,0.161974,61738.0,61737.0,0.004]
[1724424337420,0.1936,61742.0,61722.0,0.324031]
[1724424337421,0.35294303,61739.0,61722.0,0.324031]
[1724424337651,0.4148,61741.0,61729.0,0.323993]
[1724424337869,0.4148,61741.0,61725.0,1.2408]
[1724424338064,0.35294303,61747.0,61725.0,1.2408]
[1724424338065,0.1926,61736.0,61725.0,1.2408]
[1724424338330,0.1926,61727.0,61725.0,1.2408]
[1724424338526,0.1926,61727.0,61706.0,0.0227]
[1724424338527,0.3986,61726.0,61712.0,1.2408]
[1724424338701,0.3986,61726.0,61709.0,1.2408]
[1724424338932,0.3986,61726.0,61711.0,0.324087]
[1724424339184,0.3986,61726.0,61712.0,0.16400298]
[1724424339386,0.560607,61726.0,61716.0,0.162032]
[1724424339594,0.560607,61726.0,61709.0,1.2408]
[1724424339595,0.884618,61726.0,61725.0,0.005]
[1724424339798,1.076018,61726.0,61725.0,0.005]
[1724424340006,0.59,61726.0,61704.0,0.49229154]
[1724424340212,0.59,61726.0,61715.0,0.324067]
[1724424340419,0.1914,61726.0,61725.0,0.162008]
[1724424340630,0.1914,61726.0,61717.0,1.2408]
[1724424340838,0.406,61721.0,61717.0,1.2408]
[1724424341054,0.162027,61718.0,61717.0,1.2408]
[1724424341256,0.353023,61720.0,61717.0,1.2408]
[1724424341530,0.191,61720.0,61717.0,1.2408]
[1724424341964,0.191,61720.0,61717.0,1.2468]
[1724424341965,0.353022,61720.0,61717.0,1.2468]
[1724424342146,0.191,61720.0,61717.0,1.2468]
[1724424342414,0.25969283,61720.0,61717.0,1.2408]
[1724424342627,0.5955,61717.0,61706.0,0.006]
[1724424342840,0.162041,61713.0,61706.0,0.006]
[1724424343048,0.5955,61707.0,61699.0,1.2408]
[1724424343456,0.757557,61707.0,61699.0,1.2408]
[1724424343661,0.5955,61707.0,61700.0,0.162073]
[1724424343864,0.5955,61707.0,61699.0,1.402876]
[1724424344071,0.5955,61707.0,61699.0,1.2408]
[1724424344245,0.6045,61707.0,61699.0,1.2408]
[1724424344472,0.6045,61707.0,61700.0,0.162073]
[1724424344588,0.5995,61707.0,61699.0,1.2408]
[1724424344798,0.6035,61707.0,61699.0,1.2408]
[1724424345233,0.6035,61707.0,61700.0,0.162073]
[1724424345234,0.5995,61707.0,61700.0,0.162073]
[1724424345439,0.5995,61707.0,61699.0,1.2408]
[1724424345440,0.2003,61707.0,61706.0,0.162058]
[1724424345640,0.008,61707.0,61706.0,0.162058]
[1724424345841,0.008,61707.0,61706.0,0.97753569]
[1724424346048,0.004,61707.0,61706.0,2.93765269]
[1724424346262,0.004,61707.0,61706.0,2.96265269]
[1724424346599,0.004,61707.0,61706.0,3.06265269]
[1724424346600,0.007,61707.0,61706.0,3.06265269]
[1724424346931,0.4004,61722.0,61706.0,2.22311998]
[1724424347097,0.49229154,61719.0,61707.0,0.16400298]
[1724424347337,0.4004,61722.0,61714.0,0.162037]
[1724424347539,0.4004,61722.0,61712.0,0.324085]
[1724424347737,0.4004,61722.0,61709.0,0.324099]
[1724424347916,0.4004,61722.0,61710.0,0.16400298]
[1724424348104,0.4004,61722.0,61713.0,0.324077]
[1724424348302,0.4004,61722.0,61715.0,0.324068]
[1724424348502,0.4004,61722.0,61711.0,0.324089]
[1724424348759,0.4004,61722.0,61716.0,0.162031]
[1724424348914,0.4004,61722.0,61711.0,0.16400298]
[1724424349116,0.4004,61722.0,61716.0,0.162031]
[1724424349296,0.4004,61722.0,61717.0,0.162029]
[1724424349500,0.4004,61722.0,61718.0,0.162026]
[1724424349705,0.1837,61727.0,61726.0,0.162006]
[1724424349927,0.394,61734.0,61726.0,0.16400298]
[1724424350132,0.1957,61735.0,61727.0,0.16400298]
[1724424350343,0.1957,61735.0,61720.0,1.6445]
[1724424350566,0.161989,61733.0,61720.0,1.2408]
[1724424350766,0.3939,61734.0,61723.0,0.162013]
[1724424351113,0.5975,61726.0,61721.0,0.162018]
[1724424351246,0.162014,61723.0,61713.0,0.4683]
[1724424351446,0.5975,61726.0,61708.0,1.2408]
[1724424351447,0.324018,61725.0,61710.0,0.324096]
[1724424351694,0.5975,61726.0,61712.0,0.324081]
[1724424352035,0.759507,61726.0,61715.0,0.162034]
[1724424352238,0.5975,61726.0,61723.0,0.001]
[1724424353004,0.5975,61726.0,61723.0,0.002]
[1724424353005,0.162011,61724.0,61723.0,0.002]
[1724424353383,0.162011,61724.0,61723.0,0.001]
[1724424353628,0.759508,61726.0,61723.0,0.001]
[1724424353827,0.5975,61726.0,61723.0,0.001]
[1724424354032,0.5975,61726.0,61723.0,0.004]
[1724424354232,0.5975,61726.0,61723.0,0.003]
[1724424354755,0.5975,61726.0,61719.0,0.324048]
[1724424355002,0.5975,61726.0,61721.0,0.162018]
[1724424355372,0.45294303,61737.0,61723.0,0.002]
[1724424355373,0.1953,61732.0,61723.0,0.002]
[1724424355594,0.23597008,61732.0,61722.0,0.162015]
[1724424355883,0.1953,61732.0,61723.0,0.162013]
[1724424356044,0.161995,61731.0,61723.0,0.003]
[1724424356244,0.003,61726.0,61725.0,0.162008]
[1724424356431,0.003,61726.0,61723.0,0.003]
[1724424356632,0.003,61726.0,61721.0,0.162018]
[1724424356633,0.3983,61725.0,61721.0,0.162018]
[1724424356973,0.3983,61725.0,61722.0,0.001]
[1724424357113,0.003,61726.0,61722.0,0.001]
[1724424357318,0.003,61726.0,61724.0,0.16201]
[1724424357518,0.02541138,61730.0,61724.0,0.16201]
[1724424357727,0.02541138,61730.0,61724.0,0.162009]
[1724424358430,0.001,61726.0,61723.0,0.324026]
[1724424358632,0.001,61726.0,61725.0,0.162008]
[1724424358879,0.02541138,61730.0,61721.0,0.162018]
[1724424359057,0.02541138,61730.0,61721.0,0.324035]
[1724424359257,0.07668634,61730.0,61725.0,0.162007]
[1724424359514,0.03241138,61730.0,61724.0,0.162011]
[1724424359720,0.03241138,61730.0,61729.0,0.161998]
[1724424359908,0.03241138,61730.0,61724.0,0.16400298]
[1724424359909,0.02841138,61730.0,61724.0,1.40480298]
[1724424360053,0.02841138,61730.0,61727.0,0.162002]
[1724424360256,0.03141138,61730.0,61724.0,1.40480298]
[1724424360456,0.03141138,61730.0,61727.0,0.162001]
[1724424360657,0.03141138,61730.0,61728.0,0.162]
[1724424360863,0.02841138,61730.0,61724.0,1.2408]
[1724424361062,0.02841138,61730.0,61724.0,1.2438]
[1724424361350,0.001,61726.0,61724.0,1.40581]
[1724424361731,0.04838258,61729.0,61724.0,1.2438]
[1724424361931,0.46208258,61726.0,61724.0,1.2438]
[1724424362066,0.4137,61726.0,61724.0,1.2438]
[1724424362270,0.162033,61716.0,61696.0,0.8688]
[1724424362483,0.04846385,61709.0,61698.0,0.00987305]
[1724424362745,0.04846385,61707.0,61704.0,0.162063]
[1724424362949,0.04846385,61707.0,61699.0,0.16724407]
[1724424362950,0.04846385,61706.0,61699.0,0.16400298]
[1724424363081,0.04846385,61706.0,61699.0,0.16724409]
[1724424363287,0.5871,61704.0,61697.0,1.2408]
[1724424363488,0.5871,61704.0,61699.0,0.162075]
[1724424363693,0.5871,61704.0,61698.0,0.011]
[1724424363694,0.63556385,61704.0,61698.0,0.011]
[1724424363903,0.5871,61704.0,61698.0,0.011]
[1724424364112,0.1848,61704.0,61703.0,0.162066]
[1724424364313,0.07389894,61707.0,61704.0,0.324128]
[1724424364532,0.02541817,61707.0,61706.0,0.486175]
[1724424364736,0.02541817,61707.0,61700.0,0.324144]
[1724424364962,0.02541817,61707.0,61698.0,0.3962]
[1724424364963,0.02541817,61707.0,61701.0,0.16400298]
[1724424365171,0.02541817,61707.0,61705.0,0.162059]
[1724424365349,0.02541817,61707.0,61697.0,1.2408]
[1724424365350,0.3987,61704.0,61703.0,0.01]
[1724424365792,0.3997,61704.0,61703.0,0.01]
[1724424366256,0.3987,61704.0,61699.0,0.006]
[1724424366459,0.3977,61704.0,61698.0,0.162078]
[1724424366662,0.3977,61704.0,61693.0,1.2408]
[1724424366663,0.3977,61704.0,61701.0,0.16207]
[1724424366835,0.04848077,61705.0,61700.0,0.324148]
[1724424366974,0.04848077,61705.0,61701.0,0.324141]
[1724424367182,0.001,61704.0,61703.0,0.492199]
[1724424367627,0.02541817,61707.0,61706.0,0.486175]
[1724424367838,0.02541817,61707.0,61706.0,0.65017798]
[1724424368202,0.02641817,61707.0,61706.0,0.65017798]
[1724424368404,0.02541817,61707.0,61706.0,0.97429498]
[1724424368604,0.02541817,61707.0,61706.0,1.32141198]
[1724424368737,0.02641817,61707.0,61706.0,1.33141198]
[1724424369193,0.02641817,61707.0,61706.0,1.30841198]
[1724424369379,0.02641817,61707.0,61706.0,0.17400298]
[1724424369584,0.02641817,61707.0,61706.0,0.33606098]
[1724424369798,0.02641817,61707.0,61706.0,0.172058]
[1724424369958,0.02641817,61707.0,61706.0,0.98429498]
[1724424370374,0.02741817,61707.0,61706.0,0.99229498]
[1724424370575,0.02741817,61707.0,61706.0,0.66817798]
[1724424371639,0.02741817,61707.0,61706.0,0.99229498]
[1724424371997,0.21671817,61707.0,61706.0,0.34406098]
[1724424372241,0.21671817,61707.0,61706.0,0.018]
[1724424373124,0.21671817,61707.0,61706.0,0.180058]
[1724424373296,0.02741817,61707.0,61706.0,0.66817798]
[1724424373501,0.02741817,61707.0,61706.0,1.34629498]
[1724424373643,0.02741817,61707.0,61706.0,1.67041198]
[1724424373843,0.02741817,61707.0,61706.0,1.34629498]
[1724424374043,0.02741817,61707.0,61706.0,0.66817798]
[1724424374261,0.02741817,61707.0,61706.0,0.34406098]
[1724424374464,0.02741817,61707.0,61706.0,0.018]
[1724424374801,0.02741817,61707.0,61706.0,0.180058]
[1724424375004,0.22411817,61707.0,61706.0,0.180058]
[1724424375564,0.38617417,61707.0,61706.0,0.018]
[1724424375882,1.08970464,61707.0,61706.0,0.018]
[1724424376266,1.41381664,61707.0,61706.0,0.018]
[1724424376464,1.41281664,61707.0,61706.0,0.01]
[1724424376666,1.57679542,61707.0,61706.0,0.01]
[1724424376862,1.58079542,61707.0,61706.0,0.01]
[1724424377650,1.41681664,61707.0,61706.0,0.01]